bitfinex/quotes_BTCUSD_20250620
["timestamp","ask_amount","ask_price","bid_price","bid_amount"]
[1750442200377,0.99898429,102980.0,102970.0,0.001]
[1750442201634,0.91539201,102980.0,102970.0,0.001]
[1750442202464,0.70395201,102980.0,102970.0,0.001]
[1750442202664,0.98159201,102980.0,102970.0,0.001]
[1750442205746,0.9866625,102980.0,102970.0,0.001]
[1750442206585,1.0158345,102980.0,102970.0,0.001]
[1750442208488,1.03619356,102980.0,102970.0,0.001]
[1750442208721,1.0158345,102980.0,102970.0,0.001]
[1750442208936,1.0158345,102980.0,102970.0,0.011]
[1750442209451,0.6758345,102980.0,102970.0,0.011]
[1750442210401,0.4644745,102980.0,102970.0,0.20523132]
[1750442210601,0.4644745,102980.0,102970.0,0.011]
[1750442211135,0.1184126,102980.0,102970.0,0.21494288]
[1750442211345,0.34640572,102980.0,102970.0,0.23436553]
[1750442211546,0.34640572,102980.0,102970.0,0.24407662]
[1750442211943,0.37930572,102980.0,102970.0,0.244077]
[1750442212453,0.36959538,102980.0,102970.0,0.22465435]
[1750442212669,0.36959538,102980.0,102970.0,0.22465416]
[1750442212875,0.35988495,102980.0,102970.0,0.011]
[1750442213941,0.21277114,102980.0,102970.0,0.011]
[1750442215417,5.72703992,102980.0,102970.0,0.011]
[1750442215632,5.72703992,102980.0,102930.0,0.0001]
[1750442215633,0.24641605,102940.0,102930.0,0.0001]
[1750442215842,0.20402196,102930.0,102920.0,0.0151]
[1750442216048,0.23683196,102930.0,102920.0,0.0151]
[1750442216257,0.23662196,102930.0,102920.0,0.0151]
[1750442217139,0.24633701,102930.0,102920.0,0.21928339]
[1750442217353,0.24633701,102930.0,102920.0,0.01524152]
[1750442217583,0.24633701,102930.0,102920.0,0.2095672]
[1750442217800,0.08570982,102930.0,102920.0,0.23871481]
[1750442218019,0.24288,102940.0,102930.0,0.22467197]
[1750442218226,0.24288,102940.0,102930.0,0.26598664]
[1750442218441,0.02918,102950.0,102940.0,0.25624997]
[1750442218864,0.0097126,102950.0,102940.0,0.25624997]
[1750442219047,0.00971269,102950.0,102940.0,0.22342997]
[1750442219304,0.0097126,102950.0,102940.0,0.22464997]
[1750442219505,0.01942539,102950.0,102940.0,0.22464997]
[1750442219710,0.02913827,102950.0,102940.0,0.22464997]
[1750442219920,0.02913817,102950.0,102940.0,0.22464997]
[1750442220132,0.03885115,102950.0,102940.0,0.22464997]
[1750442220316,0.24283347,102950.0,102940.0,0.20400223]
[1750442220586,0.23312163,102950.0,102940.0,0.21371614]
[1750442220798,0.22340884,102950.0,102940.0,0.22342997]
[1750442221008,0.22340884,102950.0,102940.0,0.21371614]
[1750442221219,0.27199332,102970.0,102940.0,0.20550793]
[1750442221427,0.06628,102960.0,102950.0,0.20520213]
[1750442221636,0.07599166,102960.0,102950.0,0.23434115]
[1750442221851,0.06628,102960.0,102950.0,0.23434115]
[1750442222079,0.06628,102960.0,102950.0,0.26674115]
[1750442222307,0.07599184,102960.0,102950.0,0.26674115]
[1750442222536,0.09541591,102960.0,102950.0,0.23434115]
[1750442222791,0.08570378,102960.0,102950.0,0.23434115]
[1750442222995,0.09541591,102960.0,102950.0,0.23434115]
[1750442223204,0.08570378,102960.0,102950.0,0.23434115]
[1750442223410,0.06628,102960.0,102950.0,0.23434115]
[1750442223620,0.095416,102960.0,102950.0,0.23434115]
[1750442223829,0.06628,102960.0,102950.0,0.47754115]
[1750442224078,0.07599166,102960.0,102950.0,0.47754115]
[1750442224496,0.06628,102960.0,102950.0,0.47754115]
[1750442224629,0.07599166,102960.0,102950.0,0.50242019]
[1750442224832,0.02913412,102970.0,102960.0,0.23309869]
[1750442225033,0.28964544,102970.0,102960.0,0.21489491]
[1750442225236,0.28964544,102970.0,102960.0,0.22338704]
[1750442225651,0.28964544,102970.0,102960.0,0.2136751]
[1750442225883,0.27993416,102970.0,102960.0,0.2136751]
[1750442226088,0.28093416,102970.0,102960.0,0.23309935]
[1750442226298,0.29064572,102970.0,102960.0,0.23309935]
[1750442226495,0.29264572,102970.0,102960.0,0.24281119]
[1750442227093,0.29264572,102970.0,102960.0,0.23309935]
[1750442227309,0.29264572,102970.0,102960.0,0.27583119]
[1750442227310,0.003,102970.0,102960.0,0.27583119]
[1750442227518,0.08822171,102970.0,102960.0,0.27583119]
[1750442227723,0.07851071,102970.0,102960.0,0.27593119]
[1750442228187,0.09793279,102970.0,102960.0,0.24413119]
[1750442228610,0.08822161,102970.0,102960.0,0.24413119]
[1750442229013,0.07851071,102970.0,102960.0,0.24413119]
[1750442229222,0.0688,102970.0,102960.0,0.25867204]
[1750442229436,0.0688,102970.0,102960.0,0.38425097]
[1750442229648,0.0688,102970.0,102960.0,0.36971012]
[1750442229857,0.07851071,102970.0,102960.0,0.36971012]
[1750442230124,0.08822152,102970.0,102960.0,0.54997012]
[1750442230390,0.09793242,102970.0,102960.0,0.54997012]
[1750442230613,0.10764342,102970.0,102960.0,0.54997012]
[1750442230832,0.09793242,102970.0,102960.0,0.33941012]
[1750442231033,0.1076436,102970.0,102960.0,0.45465119]
[1750442231240,0.09793242,102970.0,102960.0,0.45465119]
[1750442231444,0.08822152,102970.0,102960.0,0.45465119]
[1750442231885,0.0688,102970.0,102960.0,0.48485119]
[1750442232605,0.07851071,102970.0,102960.0,0.48485119]
[1750442233291,0.0688,102970.0,102960.0,0.48485119]
[1750442233521,0.0688,102970.0,102960.0,0.62587097]
[1750442233964,0.003,102970.0,102960.0,0.62587097]
[1750442234204,0.0688,102970.0,102960.0,0.62587097]
[1750442234469,0.06485,102990.0,102980.0,0.44629157]
[1750442234701,0.06485,102990.0,102980.0,1.64715504]
[1750442234931,0.06485,102990.0,102980.0,0.94614296]
[1750442235185,5e-05,103000.0,102990.0,0.64048236]
[1750442235419,5e-05,103010.0,103000.0,0.69046067]
[1750442235678,5e-05,103010.0,103000.0,1.53675168]
[1750442235918,0.00018749,103010.0,103000.0,1.53675168]
[1750442237097,0.00018749,103010.0,103000.0,1.53875168]
[1750442237329,0.00018749,103010.0,103000.0,1.54539168]
[1750442238733,0.00018749,103010.0,103000.0,2.24640376]
[1750442239441,5e-05,103020.0,103010.0,0.48781899]
[1750442239677,0.00052154,103020.0,103010.0,1.69518646]
[1750442240155,0.00052154,103020.0,103010.0,0.58405438]
[1750442240387,0.00052154,103020.0,103010.0,0.60739792]
[1750442240870,0.06585,103030.0,103020.0,0.21351676]
[1750442240871,0.06576,103030.0,103020.0,0.21351676]
[1750442241103,0.01941275,103020.0,103010.0,0.21957025]
[1750442241337,0.01941275,103020.0,103010.0,0.42961025]
[1750442241569,0.09487884,103020.0,103010.0,0.43931776]
[1750442241805,0.06576,103020.0,103010.0,0.44049776]
[1750442242040,0.2622087,103040.0,103030.0,0.22323461]
[1750442242267,0.33767348,103040.0,103030.0,0.22323461]
[1750442242696,0.3279687,103040.0,103030.0,0.22323461]
[1750442242904,0.25250421,103040.0,103030.0,0.22323461]
[1750442243368,0.32796851,103040.0,103030.0,0.22323461]
[1750442243568,0.34737778,103040.0,103030.0,0.22523461]
[1750442243776,0.337673,103040.0,103030.0,0.22523461]
[1750442243979,0.34737768,103040.0,103030.0,0.22723461]
[1750442244184,0.337673,103040.0,103030.0,0.22723461]
[1750442244613,0.2428,103040.0,103030.0,0.22723461]
[1750442244823,0.31826421,103040.0,103030.0,0.22723461]
[1750442245029,0.30856,103040.0,103030.0,0.24504316]
[1750442245246,0.30856,103040.0,103030.0,0.22836461]
[1750442245460,0.3279687,103040.0,103030.0,0.22723461]
[1750442245666,0.30856,103040.0,103030.0,0.22723461]
[1750442245911,0.2428,103040.0,103030.0,0.22836461]
[1750442246123,0.30856,103040.0,103030.0,0.22836461]
[1750442247841,0.30856,103040.0,103030.0,0.33818439]
[1750442248046,0.30856,103040.0,103030.0,0.36968439]
[1750442248698,0.2428,103040.0,103030.0,0.33818439]
[1750442248911,0.30856,103040.0,103030.0,0.54673439]
[1750442249126,0.30856,103040.0,103030.0,0.54786439]
[1750442249796,0.31826412,103040.0,103030.0,0.53215354]
[1750442250011,0.32796852,103040.0,103030.0,0.54669439]
[1750442250216,0.31826412,103040.0,103030.0,0.43687461]
[1750442250419,0.30856,103040.0,103030.0,0.43800461]
[1750442250885,0.32796852,103040.0,103030.0,0.22723461]
[1750442251121,0.34737779,103040.0,103030.0,0.43683461]
[1750442251324,0.28161779,103040.0,103030.0,0.22723461]
[1750442251529,0.30856,103040.0,103030.0,0.22723461]
[1750442252280,0.56207285,103040.0,103030.0,0.21752955]
[1750442252483,0.56207285,103040.0,103030.0,0.22723498]
[1750442252883,0.58148268,103040.0,103030.0,0.21752955]
[1750442253088,0.57177847,103040.0,103030.0,0.21752955]
[1750442253285,0.57177847,103040.0,103030.0,0.22723498]
[1750442253825,0.36797414,103040.0,103030.0,0.23694023]
[1750442254247,0.57177847,103040.0,103030.0,0.23694023]
[1750442254364,0.57177847,103040.0,103030.0,0.22723498]
[1750442254814,0.56207398,103040.0,103030.0,0.22723498]
[1750442255027,0.5835692,103040.0,103030.0,0.20782402]
[1750442255223,0.57464433,103040.0,103030.0,0.20782402]
[1750442255436,0.57464433,103040.0,103030.0,0.22723498]
[1750442255953,0.58356016,103040.0,103030.0,0.22723498]
[1750442256163,0.33470084,103040.0,103030.0,0.21752964]
[1750442256424,0.11832559,103040.0,103030.0,0.22723517]
[1750442256633,0.35570974,103040.0,103030.0,0.22723517]
[1750442256840,0.35570982,103040.0,103030.0,0.2369406]
[1750442257247,0.32212982,103040.0,103030.0,0.21752964]
[1750442257456,0.33630074,103040.0,103030.0,0.004]
[1750442257664,0.54562074,103040.0,103030.0,0.004]
[1750442258079,0.0817204,103040.0,103030.0,0.21752974]
[1750442258288,0.32209435,103040.0,103030.0,0.21752993]
[1750442258490,0.31238939,103040.0,103030.0,0.22723565]
[1750442258708,0.51619363,103040.0,103030.0,0.22723565]
[1750442259115,0.32209426,103040.0,103030.0,0.23694127]
[1750442259311,0.50648942,103040.0,103030.0,0.22723565]
[1750442259532,0.00893704,103040.0,103030.0,0.22723414]
[1750442259737,0.07405704,103040.0,103030.0,0.43760414]
[1750442260154,0.06512,103040.0,103030.0,0.43760414]
[1750442260358,0.07405813,103040.0,103030.0,0.43760414]
[1750442260774,0.07405813,103040.0,103030.0,0.53288307]
[1750442262308,0.07409023,103040.0,103030.0,0.53288307]
[1750442262545,0.00897023,103040.0,103030.0,0.61032392]
[1750442262947,0.00897023,103040.0,103030.0,0.95032392]
[1750442263975,0.00897023,103040.0,103030.0,0.74108392]
[1750442264397,0.00897023,103040.0,103030.0,0.95004392]
[1750442264602,0.00897023,103040.0,103030.0,1.651056]
[1750442265227,0.06517,103060.0,103050.0,0.23773233]
[1750442265432,0.07429581,103060.0,103050.0,0.54306126]
[1750442266263,0.07429581,103060.0,103050.0,0.57566126]
[1750442266264,0.00917581,103060.0,103050.0,0.57566126]
[1750442267077,0.00917581,103060.0,103050.0,0.33414126]
[1750442267279,0.00917581,103060.0,103050.0,0.54294126]
[1750442268107,0.00917581,103060.0,103050.0,0.57354126]
[1750442268315,0.00917581,103060.0,103050.0,0.57364126]
[1750442268738,0.00917581,103060.0,103050.0,0.60624126]
[1750442268954,0.0001914,103060.0,103050.0,0.60624126]
[1750442269156,0.0001914,103060.0,103050.0,0.39744126]
[1750442269360,0.0001914,103060.0,103050.0,0.60612126]
[1750442269775,0.0001914,103060.0,103050.0,1.30713334]
[1750442270745,0.0001914,103060.0,103050.0,1.30813334]
[1750442271198,0.0001914,103060.0,103050.0,1.30801334]
[1750442272234,5e-05,103080.0,103050.0,1.30801334]
[1750442272235,0.0437383,103120.0,103090.0,0.31696985]
[1750442272442,0.02189393,103120.0,103110.0,2.04415661]
[1750442272651,0.05325107,103130.0,103120.0,0.23758082]
[1750442272652,0.015,103130.0,103120.0,0.23758082]
[1750442272859,0.00016777,103140.0,103130.0,0.19392999]
[1750442273065,0.00913489,103140.0,103130.0,1.11133127]
[1750442273272,0.015,103150.0,103140.0,0.64073757]
[1750442273529,0.015,103160.0,103150.0,1.34172803]
[1750442273757,0.015,103160.0,103150.0,1.48700696]
[1750442273960,0.01547107,103160.0,103150.0,1.48700696]
[1750442274175,0.01547107,103160.0,103150.0,1.69596696]
[1750442274377,0.01547107,103160.0,103150.0,1.7734678]
[1750442274575,0.00577543,103160.0,103150.0,1.6145078]
[1750442274882,0.00577543,103160.0,103150.0,1.07409572]
[1750442275094,0.015,103170.0,103160.0,1.00716557]
[1750442275308,0.01514126,103170.0,103160.0,0.44196804]
[1750442275539,0.00544562,103170.0,103160.0,1.61844097]
[1750442275964,0.0315745,103190.0,103180.0,0.28745112]
[1750442276169,0.0315745,103190.0,103180.0,0.38273005]
[1750442276600,0.0315745,103190.0,103180.0,0.54421005]
[1750442276936,0.0315745,103190.0,103180.0,0.33273005]
[1750442277495,0.0315745,103190.0,103180.0,0.54751005]
[1750442277908,0.0315745,103190.0,103180.0,0.5329692]
[1750442278122,0.0315745,103190.0,103180.0,0.30190664]
[1750442278123,0.06064528,103190.0,103180.0,0.30190664]
[1750442278341,0.07033595,103190.0,103180.0,0.52407806]
[1750442278553,0.30847288,103190.0,103180.0,0.09837893]
[1750442278764,0.64847288,103190.0,103180.0,0.0031]
[1750442278974,5.79170825,103190.0,103180.0,0.00061]
[1750442279405,0.03022708,103170.0,103160.0,0.19387352]
[1750442279615,0.22408188,103170.0,103160.0,0.19387352]
[1750442279841,0.0205365,103160.0,103150.0,0.20358681]
[1750442280049,0.03022942,103160.0,103150.0,0.20372816]
[1750442280255,0.04961658,103160.0,103150.0,0.20372825]
[1750442280473,0.25184789,103160.0,103150.0,0.19403364]
[1750442280688,0.08353612,103160.0,103150.0,0.22311636]
[1750442280900,0.102923,103160.0,103150.0,0.22311654]
[1750442281109,0.27741047,103160.0,103150.0,0.00214126]
[1750442281544,0.26771717,103160.0,103150.0,0.19603364]
[1750442281754,0.02053613,103160.0,103150.0,0.22511636]
[1750442281969,0.08773632,103160.0,103150.0,0.22511636]
[1750442282184,0.02053632,103160.0,103150.0,0.22511636]
[1750442282394,0.07804302,103160.0,103150.0,0.22521636]
[1750442282629,0.00115,103160.0,103150.0,0.22521636]
[1750442282841,0.07804283,103160.0,103150.0,0.22521636]
[1750442283059,0.06835,103160.0,103150.0,0.22521636]
[1750442283282,0.00115,103160.0,103150.0,0.22521636]
[1750442283515,0.06835,103160.0,103150.0,0.22521636]
[1750442283955,0.00115,103160.0,103150.0,0.22521636]
[1750442284176,0.06835,103160.0,103150.0,0.22521636]
[1750442284393,0.00115,103160.0,103150.0,0.22521636]
[1750442284624,0.02907699,103170.0,103160.0,0.22295349]
[1750442284867,0.09742708,103170.0,103160.0,0.22295358]
[1750442285089,0.29128254,103170.0,103160.0,0.20356717]
[1750442285315,0.01084339,103160.0,103150.0,0.22521636]
[1750442285530,0.07800198,103170.0,103160.0,0.2326465]
[1750442285743,0.08769406,103170.0,103160.0,0.2326465]
[1750442285955,0.08769397,103170.0,103160.0,0.2326465]
[1750442286183,0.10707879,103170.0,103160.0,0.23264669]
[1750442286388,0.01184189,103170.0,103160.0,0.23264669]
[1750442286603,0.10807859,103170.0,103160.0,0.23264669]
[1750442286809,0.08869387,103170.0,103160.0,0.23264669]
[1750442287013,0.01184208,103170.0,103160.0,0.23264669]
[1750442287220,0.06931,103170.0,103160.0,0.23264669]
[1750442287445,0.07900198,103170.0,103160.0,0.23264669]
[1750442287850,0.09838651,103170.0,103160.0,0.23264669]
[1750442288054,0.10807906,103170.0,103160.0,0.23264688]
[1750442288265,0.09838651,103170.0,103160.0,0.23264688]
[1750442289110,0.04091906,103170.0,103160.0,0.22295386]
[1750442289311,0.10807906,103170.0,103160.0,0.23264688]
[1750442289519,0.09838651,103170.0,103160.0,0.22295386]
[1750442289728,0.09838651,103170.0,103160.0,0.23264688]
[1750442289934,0.09838651,103170.0,103160.0,0.22295386]
[1750442290135,0.10807906,103170.0,103160.0,0.23264697]
[1750442290337,0.09838642,103170.0,103160.0,0.24233999]
[1750442290622,0.39671314,103170.0,103160.0,0.19387359]
[1750442290837,0.08869425,103170.0,103160.0,0.22295349]
[1750442291065,0.06931,103170.0,103160.0,0.22295349]
[1750442291338,0.08869444,103170.0,103160.0,0.22295349]
[1750442291604,0.35524188,103170.0,103160.0,0.20356726]
[1750442291847,0.06931,103170.0,103160.0,0.21326084]
[1750442292092,0.0983869,103170.0,103160.0,0.23264716]
[1750442292311,0.08869435,103170.0,103160.0,0.23264716]
[1750442292570,0.0983868,103170.0,103160.0,0.23264716]
[1750442292804,0.08869435,103170.0,103160.0,0.23264716]
[1750442293013,0.0983868,103170.0,103160.0,0.23264716]
[1750442293211,0.07900208,103170.0,103160.0,0.23264716]
[1750442293424,0.06931,103170.0,103160.0,0.31036611]
[1750442293624,0.06816,103170.0,103160.0,0.42018589]
[1750442293854,0.001,103170.0,103160.0,0.42018589]
[1750442294059,0.06816,103170.0,103160.0,0.42018589]
[1750442294269,0.07785208,103170.0,103160.0,0.42018589]
[1750442294686,0.06816,103170.0,103160.0,0.42018589]
[1750442295101,0.001,103170.0,103160.0,0.42138589]
[1750442295555,0.001,103170.0,103160.0,0.44995282]
[1750442295979,0.07685095,103180.0,103170.0,0.22293188]
[1750442296189,0.06716,103180.0,103170.0,0.31821081]
[1750442296431,0.06716,103180.0,103170.0,0.53081081]
[1750442296860,0.0850065,103180.0,103170.0,0.53081081]
[1750442297067,0.09469754,103180.0,103170.0,0.53081081]
[1750442297270,0.02753745,103180.0,103170.0,0.31821081]
[1750442297484,0.12492153,103180.0,103170.0,0.53265081]
[1750442297925,0.10553859,103180.0,103170.0,0.53265081]
[1750442298171,0.02868745,103180.0,103170.0,0.53265081]
[1750442298415,0.04691972,103180.0,103170.0,0.32021081]
[1750442298652,0.10438849,103180.0,103170.0,0.34887774]
[1750442298867,0.0850065,103180.0,103170.0,0.34887774]
[1750442299298,0.0178465,103180.0,103170.0,0.42659669]
[1750442299520,0.0178465,103180.0,103170.0,0.46468593]
[1750442299727,0.0178465,103180.0,103170.0,0.48042678]
[1750442299928,0.0975845,103190.0,103180.0,0.22291027]
[1750442300140,0.0975845,103190.0,103180.0,0.5298292]
[1750442300348,0.0975845,103190.0,103180.0,0.54557005]
[1750442300556,0.0975845,103190.0,103180.0,0.58365929]
[1750442300977,0.0304245,103190.0,103180.0,0.58365929]
[1750442301184,0.0304245,103190.0,103180.0,0.70419315]
[1750442301608,0.0304245,103190.0,103180.0,0.66610391]
[1750442301819,0.0304245,103190.0,103180.0,0.60897005]
[1750442302243,0.0304245,103190.0,103180.0,0.61197005]
[1750442302457,0.0304245,103190.0,103180.0,0.71690291]
[1750442302665,0.0304245,103190.0,103180.0,0.68630291]
[1750442302876,0.0304245,103190.0,103180.0,0.41643092]
[1750442303089,0.05095509,103190.0,103180.0,0.49437445]
[1750442303302,0.05816576,103190.0,103180.0,0.49437445]
[1750442303507,0.05816576,103190.0,103180.0,0.32241854]
[1750442303710,0.25198299,103190.0,103180.0,0.49421675]
[1750442303914,0.07613988,103190.0,103180.0,0.30315922]
[1750442304124,0.26995711,103190.0,103180.0,0.29346808]
[1750442304329,0.26026691,103190.0,103180.0,0.27408533]
[1750442304533,0.26026691,103190.0,103180.0,0.29346845]
[1750442304738,0.26026691,103190.0,103180.0,0.27420625]
[1750442304947,0.26026691,103190.0,103180.0,0.30316377]
[1750442305155,0.26026691,103190.0,103180.0,0.24529339]
[1750442305360,0.26026691,103190.0,103180.0,0.27420625]
[1750442305566,0.29056691,103190.0,103180.0,0.22591083]
[1750442305978,0.29056691,103190.0,103180.0,0.23560225]
[1750442305979,0.26027374,103190.0,103180.0,0.23560225]
[1750442306194,0.07614662,103190.0,103180.0,0.24529339]
[1750442306399,0.05676584,103190.0,103180.0,0.24529339]
[1750442306607,0.07614643,103190.0,103180.0,0.24529339]
[1750442306817,0.0858371,103190.0,103180.0,0.24529339]
[1750442306997,0.11096545,103190.0,103180.0,0.24529339]
[1750442307231,0.11096545,103190.0,103180.0,0.41829127]
[1750442307642,0.11096567,103190.0,103180.0,0.41829127]
[1750442307849,0.04592567,103190.0,103180.0,0.41951127]
[1750442308060,0.04592567,103190.0,103180.0,0.41756764]
[1750442308266,0.05561568,103190.0,103180.0,0.41634764]
[1750442308485,0.04592567,103190.0,103180.0,0.41634764]
[1750442308911,0.04592869,103190.0,103180.0,0.49001267]
[1750442309336,0.06654919,103190.0,103180.0,0.25279656]
[1750442309550,0.14923043,103190.0,103180.0,0.43264702]
[1750442309762,0.35273852,103190.0,103180.0,0.44233844]
[1750442309974,0.35273852,103190.0,103180.0,0.40742941]
[1750442310190,0.32366754,103190.0,103180.0,0.003]
[1750442310439,0.32366754,103190.0,103180.0,0.21621942]
[1750442310653,0.26036754,103190.0,103180.0,0.23560198]
[1750442311062,0.26036754,103190.0,103180.0,0.22591093]
[1750442311276,0.24098592,103190.0,103180.0,0.003]
[1750442311541,0.24098592,103190.0,103180.0,0.20652771]
[1750442311766,0.27388654,103190.0,103180.0,0.20652781]
[1750442311983,0.27388654,103190.0,103180.0,0.21621951]
[1750442312192,0.30698654,103190.0,103180.0,0.003]
[1750442312372,0.34042788,103190.0,103180.0,0.003]
[1750442312837,0.04592931,103190.0,103180.0,0.27455496]
[1750442313055,0.04593281,103190.0,103180.0,0.003]
[1750442313267,0.04717281,103190.0,103180.0,0.22591027]
[1750442313476,0.04717281,103190.0,103180.0,0.43455027]
[1750442314110,0.04593281,103190.0,103180.0,0.22591027]
[1750442314342,0.04593281,103190.0,103180.0,0.43455027]
[1750442314559,0.04593281,103190.0,103180.0,0.5298292]
[1750442314776,0.11097281,103190.0,103180.0,0.5298292]
[1750442314985,0.04593281,103190.0,103180.0,0.5941492]
[1750442315200,0.04593281,103190.0,103180.0,0.5310492]
[1750442315847,0.04593281,103190.0,103180.0,0.60869005]
[1750442317338,0.0459331,103190.0,103180.0,0.60869005]
[1750442318032,0.03017885,103190.0,103180.0,0.60569005]
[1750442318136,0.03017885,103190.0,103180.0,0.54133005]
[1750442318351,0.03017885,103190.0,103180.0,0.33395005]
[1750442318559,0.03017885,103190.0,103180.0,0.54133005]
[1750442318787,0.03017885,103190.0,103180.0,0.54255005]
[1750442318988,0.03017885,103190.0,103180.0,0.60645005]
[1750442319799,0.03017885,103190.0,103180.0,1.30746213]
[1750442320010,0.03017885,103190.0,103180.0,1.64746213]
[1750442320011,0.03017274,103190.0,103180.0,1.64746213]
[1750442320222,0.03017274,103190.0,103180.0,1.7238407]
[1750442320430,0.02048067,103190.0,103180.0,1.88307632]
[1750442320645,0.025,103200.0,103190.0,0.33678867]
[1750442320857,0.025,103200.0,103190.0,1.21201863]
[1750442321069,0.01530536,103200.0,103190.0,0.55170786]
[1750442321277,0.01530536,103200.0,103190.0,1.02388929]
[1750442321693,0.01530536,103200.0,103190.0,1.80262032]
[1750442321899,0.00561072,103200.0,103190.0,1.97899889]
[1750442322128,5e-05,103230.0,103220.0,0.20830174]
[1750442322343,0.00019126,103230.0,103220.0,0.60458366]
[1750442322985,0.00019126,103230.0,103220.0,1.64559574]
[1750442323213,0.00019126,103230.0,103220.0,0.94458366]
[1750442323430,0.00010282,103230.0,103220.0,0.79529928]
[1750442323639,0.00010282,103230.0,103220.0,1.00377928]
[1750442323848,0.00010282,103230.0,103220.0,1.75479136]
[1750442324062,0.00210282,103230.0,103220.0,1.75479136]
[1750442324298,0.00210282,103230.0,103220.0,0.73606366]
[1750442324516,0.00210282,103230.0,103220.0,0.94854366]
[1750442324730,0.00011,103240.0,103230.0,0.33856315]
[1750442324953,0.00011,103240.0,103230.0,0.47254292]
[1750442325166,0.00011,103240.0,103230.0,0.84183636]
[1750442325410,0.00011,103240.0,103230.0,0.97277552]
[1750442325623,0.0154245,103290.0,103280.0,0.07574085]
[1750442325834,0.0154245,103290.0,103280.0,0.52641338]
[1750442325835,0.0804645,103290.0,103280.0,0.52641338]
[1750442326054,0.0821754,103290.0,103280.0,0.29860958]
[1750442326273,0.3855954,103290.0,103280.0,0.21301278]
[1750442326492,0.34959832,103290.0,103280.0,0.20333074]
[1750442326746,0.60826865,103290.0,103280.0,0.20333074]
[1750442326962,0.25978833,103280.0,103250.0,0.19365046]
[1750442327198,0.02060698,103260.0,103250.0,0.52638376]
[1750442327407,0.09529061,103260.0,103250.0,0.52638376]
[1750442327613,0.08560698,103260.0,103250.0,0.52638376]
[1750442327820,0.06624,103260.0,103250.0,0.31798376]
[1750442328030,0.37028864,103270.0,103260.0,0.21305385]
[1750442328241,0.43528864,103270.0,103260.0,0.22273786]
[1750442328445,0.4449719,103270.0,103260.0,0.44078168]
[1750442328652,0.67053973,103270.0,103260.0,0.19368584]
[1750442328873,0.65117369,103270.0,103260.0,0.20336985]
[1750442329076,0.40624,103270.0,103260.0,0.23242159]
[1750442329309,0.44497134,103270.0,103260.0,0.22273796]
[1750442329527,0.30480391,103290.0,103260.0,0.22373777]
[1750442329736,0.02681622,103290.0,103280.0,0.21301278]
[1750442329947,0.02681622,103290.0,103280.0,0.21301287]
[1750442329948,0.04617852,103290.0,103280.0,0.21301287]
[1750442330154,0.05585999,103290.0,103280.0,0.19364833]
[1750442330368,0.00968222,103280.0,103270.0,0.20335043]
[1750442330625,0.02060426,103280.0,103270.0,0.43111666]
[1750442330848,0.01092176,103280.0,103270.0,0.24208214]
[1750442331056,0.03028574,103280.0,103270.0,0.45040214]
[1750442331270,0.03028583,103280.0,103270.0,0.44071945]
[1750442331483,0.03028583,103280.0,103270.0,0.4213535]
[1750442331701,0.03996805,103280.0,103270.0,0.43103638]
[1750442331912,0.01936566,103270.0,103260.0,0.20336994]
[1750442332134,0.01092269,103270.0,103260.0,0.2324213]
[1750442332340,0.00124,103270.0,103260.0,0.4407413]
[1750442332543,0.0206053,103270.0,103260.0,0.4407413]
[1750442332750,0.00124,103270.0,103260.0,0.4407413]
[1750442332963,0.01092251,103270.0,103260.0,0.4407413]
[1750442333174,0.06248573,103280.0,103270.0,0.22271581]
[1750442333381,0.03996796,103280.0,103270.0,0.22271591]
[1750442333603,0.23361629,103280.0,103270.0,0.20335024]
[1750442333811,0.00968232,103280.0,103270.0,0.00968335]
[1750442334018,0.00968232,103280.0,103260.0,0.20337003]
[1750442334019,0.02904864,103270.0,103260.0,0.20337003]
[1750442334225,0.02904855,103270.0,103260.0,0.20437003]
[1750442334448,0.0096826,103270.0,103260.0,0.21405394]
[1750442334653,0.29739889,103270.0,103260.0,0.42133413]
[1750442334874,0.2780335,103270.0,103260.0,0.20337003]
[1750442335081,0.2780335,103270.0,103260.0,0.21305413]
[1750442335315,0.2780335,103270.0,103260.0,0.22273814]
[1750442335538,0.2780335,103270.0,103260.0,0.19368584]
[1750442335748,0.26835043,103270.0,103260.0,0.20437013]
[1750442335958,0.26957043,103270.0,103260.0,0.21405432]
[1750442336162,0.26835043,103270.0,103260.0,0.21405432]
[1750442336369,0.2780335,103270.0,103260.0,0.23342233]
[1750442336576,0.08436642,103270.0,103260.0,0.24310605]
[1750442336789,0.2780335,103270.0,103260.0,0.23342176]
[1750442336997,0.2780335,103270.0,103260.0,0.22373804]
[1750442337219,0.08436586,103270.0,103260.0,0.23342205]
[1750442337428,0.08436586,103270.0,103260.0,0.24310577]
[1750442337634,0.01936586,103270.0,103260.0,0.24423521]
[1750442337841,0.09372827,103270.0,103260.0,0.24423521]
[1750442338052,0.04841478,103270.0,103260.0,0.24423521]
[1750442338254,0.03873143,103270.0,103260.0,0.24423521]
[1750442338466,0.10341143,103270.0,103260.0,0.24423521]
[1750442338668,0.06468,103270.0,103260.0,0.24423521]
[1750442339078,0.08404557,103270.0,103260.0,0.24423521]
[1750442339282,0.09372864,103270.0,103260.0,0.24423521]
[1750442339482,0.07436269,103270.0,103260.0,0.24423521]
[1750442339660,0.08404548,103270.0,103260.0,0.24423521]
[1750442339864,0.02904845,103270.0,103260.0,0.24423521]
[1750442340071,0.02904892,103270.0,103260.0,0.33951414]
[1750442340275,0.00968269,103270.0,103260.0,0.33951414]
[1750442340478,0.01936557,103270.0,103260.0,0.33951414]
[1750442340696,0.08404435,103280.0,103270.0,0.222716]
[1750442340900,0.09372564,103280.0,103270.0,0.222716]
[1750442341121,0.02562612,103290.0,103280.0,0.22269445]
[1750442341327,0.0159454,103290.0,103280.0,0.35230338]
[1750442341539,0.0159454,103290.0,103280.0,0.73694423]
[1750442341954,0.0159454,103290.0,103280.0,0.94518423]
[1750442342167,0.0159454,103290.0,103280.0,1.64619631]
[1750442342376,0.0159454,103290.0,103280.0,0.94518423]
[1750442342795,0.0159454,103290.0,103280.0,1.64619631]
[1750442343238,0.0159454,103290.0,103280.0,1.48795631]
[1750442343464,0.0159454,103290.0,103280.0,1.04514423]
[1750442343678,0.0159454,103290.0,103280.0,1.48795631]
[1750442343885,0.0159454,103290.0,103280.0,0.99614423]
[1750442344524,0.0159454,103290.0,103280.0,1.69715631]
[1750442344739,0.0159454,103290.0,103280.0,1.74715631]
[1750442344943,0.0159454,103290.0,103280.0,1.74615631]
[1750442345149,0.0159454,103290.0,103280.0,1.75015631]
[1750442345599,0.0159454,103290.0,103280.0,1.04914423]
[1750442345778,0.0159454,103290.0,103280.0,1.75015631]
[1750442346007,0.0159454,103290.0,103280.0,1.44195631]
[1750442346196,0.0159454,103290.0,103280.0,0.79094423]
[1750442346404,0.0159454,103290.0,103280.0,0.99910423]
[1750442346608,0.0159454,103290.0,103280.0,1.70011631]
[1750442346816,0.0159454,103290.0,103280.0,1.75011631]
[1750442347652,0.0159454,103290.0,103280.0,2.45112839]